fUSD/lending_fUSD_20260614
["ID","MTS","AMOUNT","RATE_DAILY","PERIOD"]
[425051801,1781447461000,-500.0,0.00027671,8]
[425051804,1781447461000,-1675.9,0.00027671,8]
[425051805,1781447461000,-500.0,0.00027671,8]
[425051803,1781447461000,-645.27628657,0.00027671,8]
[425051822,1781447461000,-500.0,0.00027671,8]
[425051807,1781447461000,-1000.0,0.00027671,8]
[425051808,1781447461000,-500.0,0.00027671,8]
[425051810,1781447461000,-500.0,0.00027671,8]
[425051813,1781447461000,-500.0,0.00027671,8]
[425051812,1781447461000,-500.0,0.00027671,8]
[425051816,1781447461000,-500.0,0.00027671,8]
[425051817,1781447461000,-500.0,0.00027671,8]
[425051811,1781447461000,-703.84,0.00027671,8]
[425051815,1781447461000,-5751.63,0.00027671,8]
[425051814,1781447461000,-1427.79,0.00027671,8]
[425051819,1781447461000,-500.0,0.00027671,8]
[425051818,1781447461000,-500.0,0.00027671,8]
[425051820,1781447461000,-500.0,0.00027671,8]
[425051809,1781447461000,-500.0,0.00027671,8]
[425051849,1781447461000,-702.05,0.00027671,8]
[425051910,1781447461000,-500.0,0.00027671,8]
[425051855,1781447461000,-500.0,0.00027671,8]
[425051882,1781447461000,-540.32,0.00027671,8]
[425051888,1781447461000,-1000.0,0.00027671,8]
[425051884,1781447461000,-500.0,0.00027671,8]
[425051881,1781447461000,-528.7,0.00027671,8]
[425051885,1781447461000,-1109.22,0.00027671,8]
[425051899,1781447461000,-563.46,0.00027671,8]
[425051890,1781447461000,-508.2,0.00027671,8]
[425051898,1781447461000,-500.0,0.00027671,8]
[425051900,1781447461000,-11664.09,0.00027671,8]
[425051889,1781447461000,-500.0,0.00027671,8]
[425051891,1781447461000,-1407.31,0.00027671,8]
[425051893,1781447461000,-500.0,0.00027671,8]
[425051886,1781447461000,-4001.43,0.00027671,8]
[425051892,1781447461000,-1023.6,0.00027671,8]
[425051895,1781447461000,-1278.35,0.00027671,8]
[425051897,1781447461000,-500.0,0.00027671,8]
[425051894,1781447461000,-500.0,0.00027671,8]
[425051901,1781447461000,-545.86,0.00027671,8]
[425051903,1781447461000,-500.0,0.00027671,8]
[425051906,1781447461000,-500.0,0.00027671,8]
[425051909,1781447461000,-2026.58,0.00027671,8]
[425051902,1781447461000,-25282.9,0.00027671,8]
[425051905,1781447461000,-677.78,0.00027671,8]
[425051904,1781447461000,-505.16,0.00027671,8]
[425051848,1781447461000,-4182.59,0.00027671,8]
[425051908,1781447461000,-500.0,0.00027671,8]
[425051896,1781447461000,-500.0,0.00027671,8]
[425051877,1781447461000,-610.83,0.00027671,8]
[425051907,1781447461000,-500.0,0.00027671,8]
[425051878,1781447461000,-1282.28,0.00027671,8]
[425051853,1781447461000,-414.84885918,0.00027671,8]
[425051854,1781447461000,-500.0,0.00027671,8]
[425051858,1781447461000,-500.0,0.00027671,8]
[425051857,1781447461000,-500.0,0.00027671,8]
[425051862,1781447461000,-500.0,0.00027671,8]
[425051863,1781447461000,-500.0,0.00027671,8]
[425051861,1781447461000,-500.0,0.00027671,8]
[425051860,1781447461000,-500.0,0.00027671,8]
[425051856,1781447461000,-500.0,0.00027671,8]
[425051865,1781447461000,-528.8,0.00027671,8]
[425051866,1781447461000,-3706.06,0.00027671,8]
[425051875,1781447461000,-1682.54,0.00027671,8]
[425051859,1781447461000,-2931.64,0.00027671,8]
[425051868,1781447461000,-500.0,0.00027671,8]
[425051887,1781447461000,-309.47582558,0.00027671,8]
[425051864,1781447461000,-742.57,0.00027671,8]
[425051880,1781447461000,-636.66,0.00027671,8]
[425051879,1781447461000,-500.0,0.00027671,8]
[425051876,1781447461000,-500.0,0.00027671,8]
[425051869,1781447461000,-518.74,0.00027671,8]
[425051883,1781447461000,-1749.66,0.00027671,8]
[425051867,1781447461000,-500.0,0.00027671,8]
[425051870,1781447461000,-658.84,0.00027671,8]
[425051873,1781447461000,-500.0,0.00027671,8]
[425051874,1781447461000,-500.0,0.00027671,8]
[425051871,1781447461000,-500.0,0.00027671,8]
[425051872,1781447461000,-500.0,0.00027671,8]
[425051946,1781447462000,-2562.95,0.00027671,8]
[425051942,1781447462000,-3655.13,0.00027671,8]
[425051949,1781447462000,-605.58,0.00027671,8]
[425051950,1781447462000,-1108.18,0.00027671,8]
[425051941,1781447462000,-500.0,0.00027671,8]
[425051940,1781447462000,-500.0,0.00027671,8]
[425051947,1781447462000,-500.0,0.00027671,8]
[425051948,1781447462000,-1440.23,0.00027671,8]
[425051945,1781447462000,-500.0,0.00027671,8]
[425051951,1781447462000,-500.0,0.00027671,8]
[425051938,1781447462000,-611.2063838,0.00027671,8]
[425051953,1781447462000,-500.0,0.00027671,8]
[425051943,1781447462000,-500.0,0.00027671,8]
[425051952,1781447462000,-500.0,0.00027671,8]
[425051955,1781447462000,-500.0,0.00027671,8]
[425051961,1781447462000,-1129.02,0.00027671,2]
[425051962,1781447462000,-500.0,0.00027671,8]
[425051957,1781447462000,-2020.73,0.00027671,8]
[425051956,1781447462000,-500.0,0.00027671,8]
[425051963,1781447462000,-500.0,0.00027671,8]
[425051958,1781447462000,-500.0,0.00027671,8]
[425051954,1781447462000,-500.0,0.00027671,8]
[425051959,1781447462000,-500.0,0.00027671,8]
[425051936,1781447462000,-5973.16,0.00027671,8]
[425051944,1781447462000,-3216.2,0.00027671,8]
[425051939,1781447462000,-1090.91,0.00027671,8]
[425051922,1781447462000,-1463.18,0.00027671,8]
[425051933,1781447462000,-577.98,0.00027671,8]
[425051960,1781447462000,-1357.49,0.00027671,8]
[425051911,1781447462000,-589.03,0.00027671,8]
[425051912,1781447462000,-1296.71,0.00027671,8]
[425051923,1781447462000,-1214.13,0.00027671,8]
[425051914,1781447462000,-557.28,0.00027671,8]
[425051913,1781447462000,-500.0,0.00027671,8]
[425051919,1781447462000,-1828.15,0.00027671,8]
[425051917,1781447462000,-1801.16,0.00027671,8]
[425051916,1781447462000,-500.0,0.00027671,8]
[425051915,1781447462000,-2890.54,0.00027671,8]
[425051918,1781447462000,-500.0,0.00027671,8]
[425051935,1781447462000,-1413.1,0.00027671,8]
[425051920,1781447462000,-500.0,0.00027671,8]
[425051930,1781447462000,-500.0,0.00027671,8]
[425051926,1781447462000,-500.0,0.00027671,8]
[425051929,1781447462000,-500.0,0.00027671,8]
[425051924,1781447462000,-595.31,0.00027671,8]
[425051925,1781447462000,-500.0,0.00027671,8]
[425051928,1781447462000,-1866.64,0.00027671,8]
[425051927,1781447462000,-500.0,0.00027671,8]
[425051931,1781447462000,-500.0,0.00027671,8]
[425051932,1781447462000,-500.0,0.00027671,8]
[425051934,1781447462000,-500.0,0.00027671,8]
[425051937,1781447462000,-763.45,0.00027671,8]
[425051921,1781447462000,-1343.56,0.00027671,8]
[425051965,1781447462000,-500.0,0.00027671,8]
[425051977,1781447462000,-12728.02,0.00027671,8]
[425051964,1781447462000,-878.66,0.00027671,8]
[425051995,1781447462000,-640.65,0.00027671,8]
[425051998,1781447462000,-955.12,0.00027671,8]
[425051997,1781447462000,-1648.13,0.00027671,8]
[425051999,1781447462000,-861.57,0.00027671,8]
[425052001,1781447462000,-500.0,0.00027671,8]
[425052000,1781447462000,-577.21,0.00027671,8]
[425052002,1781447462000,-500.0,0.00027671,8]
[425052004,1781447462000,-2104.15,0.00027671,8]
[425052003,1781447462000,-800.7,0.00027671,8]
[425052009,1781447462000,-500.0,0.00027671,8]
[425052010,1781447462000,-500.0,0.00027671,8]
[425051996,1781447462000,-5289.14,0.00027671,8]
[425052006,1781447462000,-500.0,0.00027671,8]
[425052005,1781447462000,-1609.77,0.00027671,8]
[425052011,1781447462000,-500.0,0.00027671,8]
[425052012,1781447462000,-1133.48,0.00027671,8]
[425052013,1781447462000,-500.0,0.00027671,8]
[425052014,1781447462000,-922.21,0.00027671,8]
[425052015,1781447462000,-500.0,0.00027671,8]
[425052018,1781447462000,-500.0,0.00027671,8]
[425052016,1781447462000,-500.0,0.00027671,8]
[425052017,1781447462000,-500.0,0.00027671,8]
[425052019,1781447462000,-500.0,0.00027671,8]
[425051975,1781447462000,-822.75,0.00027671,8]
[425052008,1781447462000,-921.05,0.00027671,8]
[425051993,1781447462000,-707.22,0.00027671,8]
[425052007,1781447462000,-500.0,0.00027671,8]
[425051990,1781447462000,-500.0,0.00027671,8]
[425051991,1781447462000,-1057.08,0.00027671,8]
[425051970,1781447462000,-500.0,0.00027671,8]
[425051966,1781447462000,-529.83,0.00027671,8]
[425051968,1781447462000,-500.0,0.00027671,8]
[425051967,1781447462000,-427.02366162,0.00027671,8]
[425051971,1781447462000,-500.0,0.00027671,8]
[425051972,1781447462000,-707.83,0.00027671,8]
[425051969,1781447462000,-500.0,0.00027671,8]
[425051974,1781447462000,-900.28,0.00027671,8]
[425051979,1781447462000,-500.0,0.00027671,8]
[425051981,1781447462000,-500.0,0.00027671,8]
[425052020,1781447462000,-500.0,0.00027671,8]
[425051980,1781447462000,-500.0,0.00027671,8]
[425051973,1781447462000,-839.66,0.00027671,8]
[425051976,1781447462000,-500.0,0.00027671,8]
[425051994,1781447462000,-1599.83,0.00027671,8]
[425051992,1781447462000,-1326.3,0.00027671,8]
[425051988,1781447462000,-500.0,0.00027671,8]
[425051986,1781447462000,-649.93,0.00027671,8]
[425051987,1781447462000,-500.0,0.00027671,8]
[425051989,1781447462000,-500.0,0.00027671,8]
[425051985,1781447462000,-1297.07,0.00027671,8]
[425051984,1781447462000,-500.0,0.00027671,8]
[425051983,1781447462000,-2061.13,0.00027671,8]
[425051978,1781447462000,-500.0,0.00027671,8]
[425051982,1781447462000,-500.0,0.00027671,8]
[425052060,1781447463000,-923.48,0.00027944,7]
[425052069,1781447463000,-569.09,0.00027945,8]
[425052070,1781447463000,-1290.4,0.00027945,8]
[425052068,1781447463000,-500.0,0.00027945,8]
[425052054,1781447463000,-667.37624602,0.00027944,8]
[425052049,1781447463000,-300.0,0.00027944,10]
[425052057,1781447463000,-500.0,0.00027944,2]
[425052055,1781447463000,-667.37624602,0.00027944,8]
[425052058,1781447463000,-500.0,0.00027944,2]
[425052050,1781447463000,-300.0,0.00027944,10]
[425052056,1781447463000,-500.0,0.00027944,2]
[425052059,1781447463000,-923.48,0.00027944,7]
[425052082,1781447463000,-630.1,0.00027945,8]
[425052061,1781447463000,-923.48,0.00027944,7]
[425052063,1781447463000,-379.61,0.00027944,8]
[425052062,1781447463000,-500.0,0.00027944,8]
[425052064,1781447463000,-643.50629944,0.00027944,7]
[425052067,1781447463000,-500.0,0.00027945,8]
[425052066,1781447463000,-2287.07,0.00027945,8]
[425052071,1781447463000,-706.5,0.00027945,8]
[425052076,1781447463000,-500.0,0.00027945,8]
[425052074,1781447463000,-500.0,0.00027945,8]
[425052073,1781447463000,-500.0,0.00027945,8]
[425052072,1781447463000,-957.59,0.00027945,8]
[425052075,1781447463000,-510.86,0.00027945,8]
[425052052,1781447463000,-300.0,0.00027944,10]
[425052065,1781447463000,-500.0,0.00027945,8]
[425052051,1781447463000,-300.0,0.00027944,10]
[425052022,1781447463000,-837.18,0.00027671,8]
[425052048,1781447463000,-300.0,0.00027944,10]
[425052021,1781447463000,-500.0,0.00027671,8]
[425052023,1781447463000,-741.37,0.00027671,8]
[425052078,1781447463000,-500.0,0.00027945,8]
[425052026,1781447463000,-8533.3425426,0.00027673,14]
[425052024,1781447463000,-1832.94495407,0.00027673,14]
[425052028,1781447463000,-253.9837,0.00027697,2]
[425052025,1781447463000,-4837.17073381,0.00027673,14]
[425052034,1781447463000,-150.0,0.00027741,2]
[425052027,1781447463000,-12765.37009804,0.00027673,14]
[425052029,1781447463000,-253.98371,0.00027697,2]
[425052032,1781447463000,-150.0,0.000277,2]
[425052033,1781447463000,-2991.49051684,0.0002773,2]
[425052053,1781447463000,-300.0,0.00027944,10]
[425052035,1781447463000,-250.79,0.000278,5]
[425052031,1781447463000,-228719.72231489,0.000277,5]
[425052047,1781447463000,-300.0,0.00027944,10]
[425052036,1781447463000,-416.31,0.000278,5]
[425052038,1781447463000,-1568.53,0.000279,7]
[425052040,1781447463000,-263.0,0.00027918,2]
[425052039,1781447463000,-2400.0,0.000279,10]
[425052044,1781447463000,-678.35989496,0.00027919,7]
[425052045,1781447463000,-1783.61,0.00027923,30]
[425052046,1781447463000,-1812.03,0.00027931,30]
[425052043,1781447463000,-197.0,0.00027918,2]
[425052041,1781447463000,-197.0,0.00027918,2]
[425052042,1781447463000,-523.95661226,0.00027918,2]
[425052030,1781447463000,-253.9837,0.00027697,2]
[425052077,1781447463000,-500.0,0.00027945,8]
[425052037,1781447463000,-506.34169308,0.00027885,2]
[425052081,1781447463000,-512.97,0.00027945,8]
[425052114,1781447463000,-1200.69,0.00027945,8]
[425052109,1781447463000,-500.0,0.00027945,8]
[425052110,1781447463000,-500.0,0.00027945,8]
[425052111,1781447463000,-500.0,0.00027945,8]
[425052116,1781447463000,-1007.63,0.00027945,8]
[425052118,1781447463000,-500.0,0.00027945,8]
[425052115,1781447463000,-985.3,0.00027945,8]
[425052120,1781447463000,-738.99,0.00027945,8]
[425052126,1781447463000,-512.6525041,0.00027945,8]
[425052127,1781447463000,-500.0,0.00027945,8]
[425052121,1781447463000,-1067.78,0.00027945,8]
[425052130,1781447463000,-1224.99,0.00027945,8]
[425052132,1781447463000,-508.34,0.00027945,8]
[425052124,1781447463000,-500.0,0.00027945,8]
[425052122,1781447463000,-500.0,0.00027945,8]
[425052129,1781447463000,-500.0,0.00027945,8]
[425052128,1781447463000,-500.0,0.00027945,8]
[425052131,1781447463000,-500.0,0.00027945,8]
[425052123,1781447463000,-500.0,0.00027945,8]
[425052139,1781447463000,-500.0,0.00027945,8]
[425052134,1781447463000,-500.0,0.00027945,8]
[425052138,1781447463000,-578.78,0.00027945,8]
[425052136,1781447463000,-500.0,0.00027945,8]
[425052133,1781447463000,-1285.32,0.00027945,8]
[425052137,1781447463000,-514.54,0.00027945,8]
[425052135,1781447463000,-926.37,0.00027945,8]
[425052080,1781447463000,-500.0,0.00027945,8]
[425052113,1781447463000,-500.0,0.00027945,8]
[425052112,1781447463000,-500.0,0.00027945,8]
[425052125,1781447463000,-700.76,0.00027945,8]
[425052108,1781447463000,-1300.69,0.00027945,8]
[425052119,1781447463000,-500.0,0.00027945,8]
[425052084,1781447463000,-925.25,0.00027945,8]
[425052086,1781447463000,-1526.43,0.00027945,8]
[425052088,1781447463000,-500.0,0.00027945,8]
[425052090,1781447463000,-552.72,0.00027945,8]
[425052094,1781447463000,-500.0,0.00027945,8]
[425052085,1781447463000,-500.0,0.00027945,8]
[425052079,1781447463000,-1013.37,0.00027945,8]
[425052087,1781447463000,-427.95387614,0.00027945,8]
[425052091,1781447463000,-500.0,0.00027945,8]
[425052093,1781447463000,-542.62,0.00027945,8]
[425052089,1781447463000,-500.0,0.00027945,8]
[425052092,1781447463000,-1280.28,0.00027945,8]
[425052083,1781447463000,-558.29,0.00027945,8]
[425052097,1781447463000,-500.0,0.00027945,8]
[425052117,1781447463000,-1573.21,0.00027945,8]
[425052095,1781447463000,-500.0,0.00027945,8]
[425052101,1781447463000,-614.99,0.00027945,8]
[425052105,1781447463000,-500.0,0.00027945,8]
[425052099,1781447463000,-500.0,0.00027945,8]
[425052104,1781447463000,-500.0,0.00027945,8]
[425052106,1781447463000,-500.0,0.00027945,8]
[425052103,1781447463000,-500.0,0.00027945,8]
[425052107,1781447463000,-801.17,0.00027945,8]
[425052098,1781447463000,-500.0,0.00027945,8]
[425052102,1781447463000,-736.33,0.00027945,8]
[425052096,1781447463000,-500.0,0.00027945,8]
[425052100,1781447463000,-685.22,0.00027945,8]
[425052160,1781447464000,-500.0,0.00027945,8]
[425052174,1781447464000,-500.0,0.00027945,8]
[425052158,1781447464000,-500.0,0.00027945,8]
[425052164,1781447464000,-500.0,0.00027945,8]
[425052165,1781447464000,-546.49,0.00027945,8]
[425052167,1781447464000,-500.0,0.00027945,8]
[425052169,1781447464000,-1400.43,0.00027945,8]
[425052176,1781447464000,-500.0,0.00027945,8]
[425052171,1781447464000,-500.0,0.00027945,8]
[425052170,1781447464000,-500.0,0.00027945,8]
[425052175,1781447464000,-500.0,0.00027945,8]
[425052173,1781447464000,-1274.35,0.00027945,8]
[425052177,1781447464000,-500.0,0.00027945,8]
[425052178,1781447464000,-500.0,0.00027945,8]
[425052172,1781447464000,-500.0,0.00027945,8]
[425052179,1781447464000,-688.19,0.00027945,8]
[425052190,1781447464000,-500.0,0.00027945,8]
[425052163,1781447464000,-500.0,0.00027945,8]
[425052168,1781447464000,-500.0,0.00027945,8]
[425052161,1781447464000,-500.0,0.00027945,8]
[425052152,1781447464000,-500.0,0.00027945,8]
[425052157,1781447464000,-682.21,0.00027945,8]
[425052180,1781447464000,-500.0,0.00027945,8]
[425052144,1781447464000,-500.0,0.00027945,8]
[425052140,1781447464000,-500.0,0.00027945,8]
[425052141,1781447464000,-951.06,0.00027945,8]
[425052142,1781447464000,-735.2,0.00027945,8]
[425052143,1781447464000,-500.0,0.00027945,8]
[425052145,1781447464000,-500.0,0.00027945,8]
[425052153,1781447464000,-1031.86,0.00027945,8]
[425052146,1781447464000,-524.27,0.00027945,8]
[425052154,1781447464000,-648.16,0.00027945,8]
[425052150,1781447464000,-1121.81,0.00027945,8]
[425052148,1781447464000,-500.0,0.00027945,8]
[425052151,1781447464000,-500.0,0.00027945,8]
[425052147,1781447464000,-553.9,0.00027945,8]
[425052149,1781447464000,-500.0,0.00027945,8]
[425052156,1781447464000,-500.0,0.00027945,8]
[425052166,1781447464000,-500.0,0.00027945,8]
[425052159,1781447464000,-500.0,0.00027945,8]
[425052162,1781447464000,-203.21772515,0.00027945,8]
[425052155,1781447464000,-800.55,0.00027945,8]
[425052185,1781447464000,-500.0,0.00027945,8]
[425052182,1781447464000,-500.0,0.00027945,8]
[425052184,1781447464000,-500.0,0.00027945,8]
[425052209,1781447464000,-500.0,0.00027945,8]
[425052211,1781447464000,-500.0,0.00027945,8]
[425052210,1781447464000,-500.0,0.00027945,8]
[425052214,1781447464000,-500.0,0.00027945,8]
[425052217,1781447464000,-1031.94,0.00027945,8]
[425052215,1781447464000,-500.0,0.00027945,8]
[425052220,1781447464000,-500.0,0.00027945,8]
[425052213,1781447464000,-532.02,0.00027945,8]
[425052207,1781447464000,-500.0,0.00027945,8]
[425052216,1781447464000,-235.98188412,0.00027945,8]
[425052219,1781447464000,-500.0,0.00027945,8]
[425052226,1781447464000,-500.0,0.00027945,8]
[425052223,1781447464000,-500.0,0.00027945,8]
[425052221,1781447464000,-500.0,0.00027945,8]
[425052225,1781447464000,-1604.32,0.00027945,8]
[425052222,1781447464000,-376.58474807,0.00027945,8]
[425052224,1781447464000,-500.0,0.00027945,8]
[425052188,1781447464000,-500.0,0.00027945,8]
[425052218,1781447464000,-500.0,0.00027945,8]
[425052208,1781447464000,-500.0,0.00027945,8]
[425052212,1781447464000,-1281.05,0.00027945,8]
[425052200,1781447464000,-1452.09,0.00027945,8]
[425052183,1781447464000,-500.0,0.00027945,8]
[425052203,1781447464000,-500.0,0.00027945,8]
[425052181,1781447464000,-500.0,0.00027945,8]
[425052186,1781447464000,-500.0,0.00027945,8]
[425052187,1781447464000,-157.15347944,0.00027945,8]
[425052193,1781447464000,-1222.28,0.00027945,8]
[425052192,1781447464000,-500.0,0.00027945,8]
[425052191,1781447464000,-1189.57,0.00027945,8]
[425052197,1781447464000,-500.0,0.00027945,8]
[425052189,1781447464000,-608.15,0.00027945,8]
[425052194,1781447464000,-500.0,0.00027945,8]
[425052198,1781447464000,-500.0,0.00027945,8]
[425052195,1781447464000,-500.0,0.00027945,8]
[425052199,1781447464000,-500.0,0.00027945,8]
[425052204,1781447464000,-1053.08,0.00027945,8]
[425052205,1781447464000,-500.0,0.00027945,8]
[425052202,1781447464000,-672.85,0.00027945,8]
[425052196,1781447464000,-500.0,0.00027945,8]
[425052206,1781447464000,-500.0,0.00027945,8]
[425052201,1781447464000,-500.0,0.00027945,8]
[425052265,1781447465000,-520.02,0.00027945,8]
[425052259,1781447465000,-500.0,0.00027945,8]
[425052261,1781447465000,-1425.15,0.00027945,8]
[425052257,1781447465000,-1099.99,0.00027945,8]
[425052256,1781447465000,-586.53,0.00027945,8]
[425052263,1781447465000,-1195.63,0.00027945,8]
[425052260,1781447465000,-671.88,0.00027945,8]
[425052264,1781447465000,-1398.15,0.00027945,8]
[425052269,1781447465000,-500.0,0.00027945,8]
[425052262,1781447465000,-436.91771977,0.00027945,8]
[425052258,1781447465000,-899.88,0.00027945,8]
[425052266,1781447465000,-841.95,0.00027945,8]
[425052287,1781447465000,-544.6,0.00027945,8]
[425052271,1781447465000,-500.0,0.00027945,8]
[425052274,1781447465000,-500.0,0.00027945,7]
[425052267,1781447465000,-500.0,0.00027945,8]
[425052272,1781447465000,-1132.03,0.00027945,8]
[425052273,1781447465000,-554.77,0.00027945,8]
[425052275,1781447465000,-607.25,0.00027945,8]
[425052277,1781447465000,-638.31,0.00027945,8]
[425052278,1781447465000,-500.0,0.00027945,8]
[425052276,1781447465000,-500.0,0.00027945,8]
[425052280,1781447465000,-500.0,0.00027945,8]
[425052254,1781447465000,-528.61993979,0.00027945,8]
[425052270,1781447465000,-500.0,0.00027945,8]
[425052255,1781447465000,-569.5736412,0.00027945,8]
[425052242,1781447465000,-500.0,0.00027945,8]
[425052246,1781447465000,-773.85,0.00027945,8]
[425052279,1781447465000,-510.28,0.00027945,8]
[425052229,1781447465000,-664.01,0.00027945,8]
[425052228,1781447465000,-500.0,0.00027945,8]
[425052227,1781447465000,-1015.25,0.00027945,8]
[425052230,1781447465000,-500.0,0.00027945,8]
[425052231,1781447465000,-500.0,0.00027945,8]
[425052234,1781447465000,-500.0,0.00027945,8]
[425052236,1781447465000,-500.0,0.00027945,8]
[425052235,1781447465000,-500.0,0.00027945,8]
[425052232,1781447465000,-1047.49,0.00027945,8]
[425052233,1781447465000,-500.0,0.00027945,8]
[425052241,1781447465000,-500.0,0.00027945,8]
[425052239,1781447465000,-642.48349207,0.00027945,8]
[425052238,1781447465000,-500.0,0.00027945,8]
[425052237,1781447465000,-500.0,0.00027945,8]
[425052240,1781447465000,-500.0,0.00027945,8]
[425052243,1781447465000,-500.0,0.00027945,8]
[425052245,1781447465000,-500.0,0.00027945,8]
[425052247,1781447465000,-2107.14,0.00027945,8]
[425052244,1781447465000,-1037.86,0.00027945,8]
[425052249,1781447465000,-500.0,0.00027945,8]
[425052252,1781447465000,-500.0,0.00027945,8]
[425052253,1781447465000,-508.13,0.00027945,8]
[425052251,1781447465000,-500.0,0.00027945,8]
[425052250,1781447465000,-766.55,0.00027945,8]
[425052248,1781447465000,-1207.41,0.00027945,8]
[425052281,1781447465000,-500.0,0.00027945,8]
[425052268,1781447465000,-500.0,0.00027945,8]
[425052282,1781447465000,-853.99,0.00027945,8]
[425052316,1781447465000,-500.0,0.00027945,8]
[425052321,1781447465000,-500.0,0.00027945,8]
[425052319,1781447465000,-500.0,0.00027945,8]
[425052315,1781447465000,-500.0,0.00027945,8]
[425052318,1781447465000,-500.0,0.00027945,8]
[425052313,1781447465000,-500.0,0.00027945,8]
[425052314,1781447465000,-500.0,0.00027945,8]
[425052322,1781447465000,-500.0,0.00027945,8]
[425052320,1781447465000,-500.0,0.00027945,8]
[425052317,1781447465000,-500.0,0.00027945,8]
[425052324,1781447465000,-500.0,0.00027945,8]
[425052330,1781447465000,-500.0,0.00027945,8]
[425052329,1781447465000,-500.0,0.00027945,8]
[425052323,1781447465000,-500.0,0.00027945,8]
[425052325,1781447465000,-500.0,0.00027945,8]
[425052327,1781447465000,-1022.53,0.00027945,8]
[425052326,1781447465000,-543.72,0.00027945,8]
[425052328,1781447465000,-597.42,0.00027945,8]
[425052331,1781447465000,-500.0,0.00027945,8]
[425052332,1781447465000,-500.0,0.00027945,8]
[425052333,1781447465000,-1193.0,0.00027945,8]
[425052334,1781447465000,-573.76,0.00027945,8]
[425052337,1781447465000,-500.0,0.00027945,8]
[425052335,1781447465000,-500.0,0.00027945,8]
[425052338,1781447465000,-500.0,0.00027945,8]
[425052312,1781447465000,-648.3,0.00027945,8]
[425052310,1781447465000,-520.69,0.00027945,8]
[425052285,1781447465000,-500.0,0.00027945,8]
[425052307,1781447465000,-790.09,0.00027945,8]
[425052306,1781447465000,-500.0,0.00027945,8]
[425052283,1781447465000,-500.0,0.00027945,8]
[425052284,1781447465000,-806.88,0.00027945,8]
[425052286,1781447465000,-500.0,0.00027945,8]
[425052290,1781447465000,-500.0,0.00027945,8]
[425052288,1781447465000,-500.0,0.00027945,8]
[425052293,1781447465000,-500.0,0.00027945,8]
[425052292,1781447465000,-500.0,0.00027945,8]
[425052291,1781447465000,-866.85,0.00027945,8]
[425052336,1781447465000,-500.0,0.00027945,8]
[425052297,1781447465000,-815.68,0.00027945,8]
[425052296,1781447465000,-500.0,0.00027945,8]
[425052289,1781447465000,-2153.84,0.00027945,8]
[425052300,1781447465000,-556.37,0.00027945,8]
[425052295,1781447465000,-500.0,0.00027945,8]
[425052311,1781447465000,-1217.4,0.00027945,8]
[425052308,1781447465000,-500.0,0.00027945,8]
[425052304,1781447465000,-191.55971755,0.00027945,8]
[425052301,1781447465000,-500.0,0.00027945,8]